Cogmind - Beta 16 @@@ ROGUE MODE // 2025.11.01 @ 09:44:28 Player: H3-MLN Result: Destroyed by WC-NBV(R) with Subdweller Machine Gun Performance ------------- Evolutions (0) 0 Regions Visited (2) 400 Robots Destroyed (16) 80 Value Destroyed (535) 535 Prototype IDs (0) 0 Alien Tech Used (0) 0 Bonus (0) 0 TOTAL SCORE: 1015 Bonus ------- None Cogmind --------- Core Integrity 0/250 Matter 268/300 Energy 125/125 System Corruption 0% Temperature Cool (0) Movement Treading (560) Ox4 Location -10/Subcaves Parts ------- > --- POWER (1) -------- Light Ion Engine > --- PROPULSION (2) --- Spiked Treads Subdweller Monowheel > --- UTILITY (2) ------ Disposable Heat Sink Huge Storage Unit > --- WEAPON (2) ------- Battle Rifle Subdweller Machine Gun > --- INVENTORY (25) --- Subdweller Power Source Subdweller Power Source Light Treads Spiked Treads Wheel Compact Wheel Subdweller Monowheel Disposable Heat Sink Disposable Heat Sink Machine Analyzer Subdweller Optics Terrain Scanner Scrap Shield Medium Laser Subdweller Beam Cannon Mining Claw Ripper Peak State ------------ > --- POWER ------------ Subdweller Power Source > --- PROPULSION ------- Spiked Treads Subdweller Monowheel > --- UTILITY ---------- Disposable Heat Sink Huge Storage Unit > --- WEAPON ----------- Battle Rifle Subdweller Machine Gun > --- INVENTORY -------- Light Ion Engine Light Treads Spiked Treads Wheel Compact Wheel Disposable Heat Sink Machine Analyzer Subdweller Optics Scrap Shield Medium Laser Subdweller Machine Gun Mining Claw Ripper [Rating: 15] Favorites ----------- Power Light Ion Engine Engine Light Ion Engine Propulsion Wheel Treads Light Treads Wheel Wheel Utility Huge Storage Unit Device Disposable Heat Sink Storage Huge Storage Unit Weapon Battle Rifle Energy Gun Medium Laser Ballistic Gun Battle Rifle Slashing Weapon Mining Claw Build | -11 -10 -10 ------- Run | Yrd Mat Sub Slots Evolved . | . . . Power . | . . . Propulsion . | . . . Utility . | . . . Weapon . | . . . Parts Attached 22 | 6 2 14 Power 3 | 1 . 2 Engine 3 | 1 . 2 Core . | . . . Reactor . | . . . Propulsion 7 | 2 . 5 Treads 3 | . . 3 Leg . | . . . Wheel 4 | 2 . 2 Hover . | . . . Flight . | . . . Utility 4 | 1 1 2 Device 2 | . . 2 Storage 2 | 1 1 . Processor . | . . . Hackware . | . . . Protection . | . . . Artifact . | . . . Weapon 8 | 2 1 5 Energy Gun 4 | 2 1 1 Energy Cannon . | . . . Ballistic Gun 3 | . . 3 Ballistic Cannon . | . . . Launcher . | . . . Special Weapon . | . . . Impact Weapon . | . . . Slashing Weapon 1 | . . 1 Piercing Weapon . | . . . Special Melee Weapon . | . . . Unidentified Prototypes . | . . . Parts Lost 8 | . 1 7 Power 2 | . . 2 Propulsion 2 | . . 2 Utility . | . . . Weapon 4 | . 1 3 Highest Loss Streak 2 | . 1 2 To Critical Strikes 1 | . . 1 Average Backups 9 | 2 5 10 Power . | . 1 . Propulsion 3 | 1 2 3 Utility 2 | . . 3 Weapon 2 | . 2 2 Tool/Special . | . . . Unused Backups 11 | . . 11 Power 2 | . . 2 Propulsion 2 | . . 2 Utility 5 | . . 5 Weapon 2 | . . 2 Tool/Special . | . . . Average Slot Usage (%) 97 | . 93 98 Engine 14 | . 14 14 Treads 11 | . . 13 Wheel 16 | . 28 14 Device 11 | . . 13 Storage 15 | . 23 14 Energy Gun 12 | . 26 9 Ballistic Gun 14 | . . 17 Peak Build Rating 15 | 6 7 15 Average Rating 10 | 4 6 11 On Entrance 4 | . 6 6 Avg Prop Armor Cover (%) 13 | . . 13 Naked Turns . | . . . Heaviest Build 92 | 12 92 92 Greatest Support 26 | 26 26 26 Greatest Overweight (x) 8 | . 3 8 Average Overweight (x) 4 | . 2 5 Largest Inventory Capacity 25 | 8 25 25 Average Capacity 24 | 6 24 25 Most Carried 18 | 4 6 18 Average Carried 10 | 2 5 11 Final Capacity 25 | 8 25 25 Final Carried 18 | 4 5 18 Class Distribution -------------------- 100% | Mutant Dominant Class ---------------- Mutant | -10/Materials Mutant | -10/Subcaves Resources | -11 -10 -10 ----------- Run | Yrd Mat Sub Matter Collected 527 | 210 70 247 Remotely . | . . . Salvage Created 784 | 29 324 431 Parts 36 | 1 11 24 Haulers Intercepted . | . . . Recyclers Shooed . | . . . Parts Field Recycled . | . . . Retrieved Matter . | . . . Parts Self-Destructed 18 | . . 18 Prevented . | . . . Parts Restored . | . . . Kills | -11 -10 -10 ------- Run | Yrd Mat Sub Combat Hostiles Destroyed 13 | . 4 9 Guns 12 | . 3 9 AOE 1 | . 1 . Classes Destroyed 7 | 1 3 3 Worker 1 | . 1 . Tunneler 1 | 1 . . Recycler 1 | . 1 . Grunt 5 | . 4 1 Sentry 1 | . . 1 Cobbler 1 | . . 1 Subdweller 7 | . . 7 Best Kill Streak 2 | 1 2 2 Combat Bots Only 2 | . 2 2 Max Kills in Single Turn 2 | 1 2 1 Gunslinging . | . . . Exploded 1 | . 1 . Melee . | . . . Uniques/NPCs Destroyed . | . . . Combat | -11 -10 -10 -------- Run | Yrd Mat Sub Hostile Shots Fired 68 | . 16 52 Missed 12 | . 1 11 Hits 56 | . 15 41 Projectile 56 | . 15 41 Critical Strikes 6 | . . 6 Damage Taken 1132 | . 232 900 Core 254 | . 65 189 Absorbed by Shields . | . . . Core Remaining (%) 100 | 100 . . Volleys Fired 69 | 1 16 52 Largest 2 | 2 2 2 Hottest 90 | 80 90 90 Shots Fired 122 | 2 28 92 Gun 122 | 2 28 92 Cannon . | . . . Launcher . | . . . Special . | . . . Kinetic 59 | . . 59 Thermal 24 | . 1 23 Explosive . | . . . Electromagnetic 39 | 2 27 10 Robot Hit Streak 17 | 2 8 17 Robot Miss Streak 3 | . 3 3 Penetration Max . | . . . Secondary Targets 2 | . 1 1 Max Gunslinging Chain 1 | . 1 1 Shots Hit Robots 83 | 2 16 65 Core Hits 30 | 1 10 19 Critical Kills . | . . . Critical Parts Destroyed . | . . . Critical Strikes 2 | . . 2 Burn 1 | . . 1 Corrupt 1 | . . 1 Melee Attacks 2 | . . 2 Impact . | . . . Slashing 2 | . . 2 Piercing . | . . . Sneak Attacks . | . . . Combat Hostiles . | . . . Follow-up Attacks . | . . . Damage Inflicted 1420 | 27 355 1038 Guns 1251 | 27 231 993 Cannons . | . . . Explosions 169 | . 124 45 Melee . | . . . Ramming . | . . . Kinetic 656 | . . 656 Thermal 444 | . 124 320 Explosive . | . . . Electromagnetic 320 | 27 231 62 Impact . | . . . Slashing . | . . . Piercing . | . . . Highest Corruption . | . . . Average Corruption . | . . . Corruption Purged . | . . . Corruption Blocked . | . . . Overload Shots . | . . . Overflow Damage . | . . . Projectiles . | . . . Explosions . | . . . Melee . | . . . Knockbacks . | . . . Impact . | . . . Kinetic . | . . . Secondary . | . . . Self-Inflicted Damage 38 | . . 38 Shots 1 | . . 1 Rammed . | . . . Targets Rammed . | . . . Kicked . | . . . Crushed . | . . . Highest Temperature 171 | 18 171 9 Average Temperature 77 | 12 82 6 Received Heat Transfer 249 | . 135 114 Siege Activations . | . . . Martial Activations . | . . . Shielding Activations . | . . . Robots Disrupted . | . . . Combat Hostiles . | . . . Robots Corrupted . | . . . Combat Hostiles . | . . . Parts Fried 1 | . 1 . Impact Corruptions . | . . . Robots Melted . | . . . Combat Hostiles . | . . . Parts Melted 2 | . . 2 Heat Transferred 1088 | . 150 938 Parts Sabotaged . | . . . Parts Stolen . | . . . Parts Stripped . | . . . Power Chain Reactions 3 | . 2 1 Alert | -11 -10 -10 ------- Run | Yrd Mat Sub Maximum Alert Level . | . . . Low Security (%) 100 | 100 100 . Level 1 . | . . . Level 2 . | . . . Level 3 . | . . . Level 4 . | . . . Level 5 . | . . . High Security . | . . . Max Security . | . . . Peak Influence 57 | . 57 . Initial . | . . . Average 19 | . 24 . Influence Increases 167 | 5 122 40 Destroy 0b10 Robot/C 120 | . 80 40 Destroy 0b10 Robot/NC 15 | 5 10 . Destroy Leader 20 | . 20 . Destroy Structure 12 | . 12 . Influence Decreases 167 | 5 100 62 Entered New Map 11 | . . 11 Time Decay 125 | 5 90 30 Lost Part 31 | . 10 21 Squads Dispatched . | . . . Investigation . | . . . Extermination . | . . . Reinforcement . | . . . Assault . | . . . Garrison . | . . . Intercept . | . . . Searches Triggered . | . . . Construction Impeded . | . . . Haulers Reinforced . | . . . Active Scanning Responses . | . . . Cargo Convoy Interrupts . | . . . Stealth | -11 -10 -10 --------- Run | Yrd Mat Sub Distress Signals . | . . . Communications Jammed . | . . . Distress Signals . | . . . Times Spotted 15 | . 4 11 Peak Tracking Total 2 | . 2 2 Tactical Retreats . | . . . Traps | -11 -10 -10 ------- Run | Yrd Mat Sub Traps Triggered . | . . . Indirectly . | . . . Trap Hack Attempts . | . . . Triggered . | . . . Disarmed . | . . . Reprogrammed . | . . . Reused . | . . . Traps Extracted . | . . . Installed . | . . . Triggered . | . . . Machines | -11 -10 -10 ---------- Run | Yrd Mat Sub Machines Disabled . | . . . Max in Single Turn . | . . . Machines Repaired . | . . . Machines Dismantled . | . . . Machines Sabotaged . | . . . Overloaded Fab Kills . | . . . Hacking | -11 -10 -10 --------- Run | Yrd Mat Sub Machines Accessed . | . . . Terminals . | . . . Fabricators . | . . . Repair Stations . | . . . Recycling Units . | . . . Scanalyzers . | . . . Garrison Access . | . . . Total Hacks . | . . . Successful . | . . . Failed . | . . . Catastrophic . | . . . Database Lockouts . | . . . Manual . | . . . Terminals . | . . . Fabricators . | . . . Repair Stations . | . . . Recycling Units . | . . . Scanalyzers . | . . . Garrison Access . | . . . Terminal Hacks . | . . . Fabricator Hacks . | . . . Repair Station Hacks . | . . . Recycling Unit Hacks . | . . . Scanalyzer . | . . . Garrison Access Hacks . | . . . Unauthorized Hacks . | . . . Terminals . | . . . Fabricators . | . . . Repair Stations . | . . . Recycling Units . | . . . Scanalyzers . | . . . Garrison Access . | . . . Data Cores Recovered . | . . . Used . | . . . Hacking Detections . | . . . Full Trace Events . | . . . Feedback Events . | . . . Feedback Blocked . | . . . Robot Schematics Acquired . | . . . Robots Built . | . . . Authchips . | . . . Time . | . . . Total Robot Build Rating . | . . . Part Schematics Acquired . | . . . Parts Built . | . . . Authchips . | . . . Time . | . . . Total Part Build Rating . | . . . Part Studies Acquired . | . . . Parts Repaired . | . . . Time . | . . . Parts Recycled . | . . . Recycled Matter . | . . . Retrieved Matter . | . . . Retrieved Components . | . . . Parts Scanalyzed . | . . . Part Schematics Acquired . | . . . Parts Damaged . | . . . Bothacking | -11 -10 -10 ------------ Run | Yrd Mat Sub Used RIF Installer . | . . . Robots Hacked . | . . . Non-combat . | . . . Combat . | . . . Robot Hacks Applied . | . . . Relay Couplers Released . | . . . Fabnet Peak Effective % . | . . . Robots Rewired . | . . . Allies Hacked . | . . . Hacks Repelled . | . . . Allies | -11 -10 -10 -------- Run | Yrd Mat Sub Total Allies . | . . . Largest Group . | . . . Highest-Rated Group . | . . . Highest-Rated Ally . | . . . Total Orders . | . . . Ally Attacks . | . . . Total Damage . | . . . Kills . | . . . Allies Corrupted . | . . . Allies Melted . | . . . Intel | -11 -10 -10 ------- Run | Yrd Mat Sub Active Infowar (turns) 229 | . . 229 Optics 229 | . . 229 Robot Analysis Total . | . . . Derelict Logs Recovered 1 | . . 1 Drone Launches . | . . . Drone Recoveries . | . . . Exploration | -11 -10 -10 ------------- Run | Yrd Mat Sub Turns Passed 1881 | 65 255 1561 Spaces Moved 885 | 56 155 674 Core 4 | 4 . . Treads . | . . . Legs . | . . . Wheels 881 | 52 155 674 Hover . | . . . Flight . | . . . Fastest Speed 50 | 50 90 135 Average Speed 161 | 87 133 173 Slowest Speed 200 | 100 135 200 Overloaded Moves . | . . . Propulsion Burnouts . | . . . Robots Hopped . | . . . Potential Cave-ins . | . . . Cave-ins Triggered . | . . . Exploration Rate (%) 18 | 4 20 30 Regions Visited 2 Branch Regions 1 Pre-discovered Areas . | . . . Known Exits Taken . | . . . Unknown Exits Taken 2 | 1 1 . Scrap Searched . | . . . Spaces Dug . | . . . Terrain Destroyed 18 | . 12 6 Melee . | . . . Projectile . | . . . AOE 18 | . 12 6 Terrain Rammed . | . . . Walls Destroyed . | . . . Machines Disabled . | . . . Actions | -11 -10 -10 --------- Run | Yrd Mat Sub Total 1208 | 66 175 967 Wait 204 | . . 204 Move 883 | 55 154 674 Hop . | . . . Pick Up 25 | 4 2 19 Fast Attach 8 | 6 1 1 Attach 8 | . 1 7 Detach . | . . . Swap 8 | . . 8 Drop 1 | . 1 . Fire 69 | 1 16 52 Melee 2 | . . 2 Ram . | . . . Kick . | . . . Crush . | . . . Escape Stasis . | . . . Rewire . | . . . Trap . | . . . Miscellaneous . | . . . Route ------- -11/Scrapyard -10/Materials -10/Subcaves (discovered 2 exits: [*Mat x2]) History --------- Turn | Location | Event 3 | -11/Scrapyard | Discovered new exit (range 16) 66 | -11/Scrapyard | Entered Materials 301 | -10/Materials | Discovered new exit (range 16) 306 | -10/Materials | Build established: Mutant 321 | -10/Materials | Entered Subcaves 322 | -10/Subcaves | Approached by a straggling Scientist 443 | -10/Subcaves | Discovered new exit (range 10) 492 | -10/Subcaves | Discovered new exit (range 14) 680 | -10/Subcaves | Learned 8 Materials zone layouts 1072 | -10/Subcaves | Core integrity fell below 50% 1406 | -10/Subcaves | Shifting Twisted Machinery released Ripper 1411 | -10/Subcaves | Shifting Twisted Machinery released Spk. Treads 1775 | -10/Subcaves | Core integrity fell below 20% 1882 | -10/Subcaves | Destroyed by WC-NBV(R) with Subdweller Machine Gun Last Messages --------------- 01695_ Ion Engine fries itself beyond repair. 01695_ Heat Sink fries itself beyond repair. 01696_ Subatomizers dissect the Heat Sink. 01702_ Heat Sink fries itself beyond repair. 01707_ Beam Rifle fries itself beyond repair. 01710_ Acquired 35 matter. 01757_ TS-GMU(R) destroyed. 01770_ Subatomizers dissect the Sub. Monowheel. 01772_ Sub. Power Source destroyed. 01774_ CA-GOI(R) destroyed. 01782_ Acquired 40 matter. 01785_ Subatomizers dissect the Sub. Monowheel. 01785_ Acquired Terrain Scanner. 01788_ Acquired Sub. Power Source. 01798_ Subatomizers dissect the Sub. Monowheel. 01798_ Acquired Sub. Monowheel. 01800_ Acquired Disposable Heat Sink. 01803_ Acquired Sub. Power Source. 01852_ Sub. Monowheel shoots sparks and powers down. 01879_ Sub. Machine Gun shoots sparks and powers down. Map ----- +----------------------------------------------------+ | ??????????????????????????????????????????????? | | ??????????????????????????????????????????????? | | ??????????????????????????????????????????????? | | ??????????????????????????????????????????????? | | ??????????????????????????????????????????????? | | ??????????????????????????????????????????????? | | ??????????????????????????????????????????????? | | ??????????????????????????????????????????????? | | ??????????????????????????????????????????????? | | ??????????????????????????????????????????????? | | ??????????????????????????????????????????????? | | ??????????????????????????????????????????????? | | ??????????????????????????????????????????????? | | ??????????????????????????????????????????????? | | ????????????????????????#?????????????????????? | | ???????????????????????? #?#??????????????????? | | ???????????????????????? ? ??????????????????? | | ???????????????????????? ?%??????????????????? | | ?????????????????????????%# ??????????????????? | | ????????????????????????? ??????????????????? | | ????????????????????????? ##?????????????????? | | ????????????????????????? #?????????????????? | | ?????????????????????????# ??????????????????? | | ?????????????????????????# #??????????????????? | | ????????????????????????##R##?????????????????? | | ????????????????????????#@ ##????????????????? | | ????????????????????##### ##???????????????? | | ????????????????????# ^#???????????????? | | ????????????????????# ##??????????????? | | ????????????????????#### #??????????????? | | ???????????????????????# ^ #??????????????? | | ???????????????????????## ##??????????????? | | ????????????????????##### ##??????????????? | | ##??????????????????# ##?????????????? | | "##?????????????????# #?????????????? | | ""################### #?????????????? | | """## # # ## # ## ## ^^ #?????????????? | | """"" ##?######?????????????? | | """ #????????????????????? | | ### # ## # # # ##????????????????????? | | ####?##################?????????????????????? | | ##???????????????????????????????????????????? | | #????????????????????????????????????????????? | | ##????????????????????????????????????????????? | | ??????????????????????????????????????????????? | | ??????????????????????????????????????????????? | | ??????????????????????????????????????????????? | | ??????????????????????????????????????????????? | | ??????????????????????????????????????????????? | | ??????????????????????????????????????????????? | +----------------------------------------------------+ Best States ------------- Heat Dissipation 25 Coolant Potential 50 Energy Generation 15 Energy Capacity 200 Matter Stores 300 Matter Capacity 300 Sight Range 21 Terrain Scan Density 10 Evasion (%) 42 Recoil Reduction 1 Item Schematics ----------------- None Robot Schematics ------------------ None Fabricated ------------ Nothing Repaired ---------- Nothing Studied --------- None Alien Tech Used ----------------- None Achievements -------------- None Challenges ------------ None Game ------ Seed FlakNovaHarness Manual? 0 Play Time 00:09:20 Cumulative 1019.4 hours Start 2025.11.01 @ 09:36:26 End 2025.11.01 @ 09:44:28 Sessions 1 Manual Loads 0 Difficulty Rogue Special Mode None Game No. 368 Rogue 363 Adventurer 4 Explorer 1 Win Type - Total 21 Types 13/3/1/1/0/1/0/0/1/1 Lore% 96 Gallery% 94 Achievement% 78 Wizard Run 0 Options --------- Layout 0 ASCII 0 Keyboard 0 Movement Numpad Keybinds 0 Fullscreen 2 Font 18/SmallcapsGlow Map View 76x50 Zoom Use 0% Tactical HUD 1 Map Filters NONE Filters NONE Steam 1 RUN: 305e6e1c-3da5-4d1b-8af5-0914b6275e4b